bitfinex-derivatives/quotes_BTCF0:USTF0_20251109
["timestamp","ask_amount","ask_price","bid_price","bid_amount"]
[1762682568248,0.17665981,101670.0,101660.0,0.82299]
[1762682568651,0.17665981,101670.0,101660.0,1.06891]
[1762682569145,0.17665981,101670.0,101660.0,0.82299]
[1762682569340,0.07827951,101670.0,101660.0,1.06691]
[1762682569548,0.07827951,101670.0,101660.0,1.06891]
[1762682570252,0.07827951,101670.0,101660.0,0.82299]
[1762682570558,0.07827951,101670.0,101660.0,1.06891]
[1762682572059,0.07827951,101670.0,101660.0,0.82299]
[1762682572462,0.07827951,101670.0,101660.0,1.06891]
[1762682572760,0.17666021,101670.0,101660.0,0.7246]
[1762682573352,0.17666021,101670.0,101660.0,0.8199903]
[1762682573551,0.17666021,101670.0,101660.0,0.7216]
[1762682575551,0.17666021,101670.0,101660.0,0.8199903]
[1762682576656,0.17666021,101670.0,101660.0,0.7216]
[1762682578454,0.17666021,101670.0,101660.0,0.8199903]
[1762682579660,0.17666021,101670.0,101660.0,0.7216]
[1762682580263,0.17666021,101670.0,101660.0,0.8199903]
[1762682582862,0.17666021,101670.0,101660.0,0.7216]
[1762682583062,0.35896094,101670.0,101660.0,0.7216]
[1762682594867,0.41167753,101670.0,101660.0,0.7216]
[1762682596274,0.41167743,101670.0,101660.0,0.7216]
[1762682600176,0.37655783,101670.0,101660.0,0.7216]
[1762682602588,0.15548,101650.0,101640.0,0.3856635]
[1762682602791,0.21178172,101650.0,101640.0,0.3856635]
[1762682602995,0.41130978,101650.0,101640.0,0.3856635]
[1762682603392,0.37622052,101650.0,101640.0,0.3856635]
[1762682603592,0.41128472,101650.0,101640.0,0.3856635]
[1762682604095,0.35865075,101650.0,101640.0,0.3886635]
[1762682604692,0.32358655,101650.0,101640.0,0.3886635]
[1762682605788,0.32358655,101650.0,101640.0,0.3916635]
[1762682606187,0.32358655,101650.0,101640.0,0.3886635]
[1762682606393,0.32658655,101650.0,101640.0,0.3856635]
[1762682607895,0.32658655,101650.0,101640.0,0.0248635]
[1762682608086,0.1553193,101630.0,101620.0,0.38324071]
[1762682608289,0.17653176,101630.0,101620.0,0.38324071]
[1762682608598,0.22558795,101630.0,101620.0,0.38324071]
[1762682609099,0.32400725,101630.0,101620.0,0.38324071]
[1762682609499,0.22558795,101630.0,101620.0,0.38424071]
[1762682609691,0.22558795,101630.0,101620.0,0.38624071]
[1762682611304,0.22558795,101630.0,101620.0,0.48466971]
[1762682611902,0.20381795,101630.0,101620.0,0.73066971]
[1762682612110,0.18178795,101630.0,101620.0,0.73066971]
[1762682612512,0.16057549,101630.0,101620.0,0.73066971]
[1762682614210,0.30279479,101630.0,101620.0,0.73066971]
[1762682614601,0.30279479,101630.0,101620.0,0.48466971]
[1762682615005,0.28102479,101630.0,101620.0,0.73066971]
[1762682615200,0.30279479,101630.0,101620.0,0.48466971]
[1762682615606,0.30279479,101630.0,101620.0,0.73066971]
[1762682617210,0.20437549,101630.0,101620.0,0.73066971]
[1762682617413,0.0131,101630.0,101620.0,0.73066971]
[1762682618216,0.0131,101630.0,101620.0,0.48466971]
[1762682618410,0.0131,101630.0,101620.0,0.73066971]
[1762682618712,0.0131,101630.0,101620.0,0.48466971]
[1762682618916,0.0131,101630.0,101620.0,0.73066971]
[1762682619116,0.0131,101630.0,101620.0,0.48466971]
[1762682619412,0.0569,101630.0,101620.0,0.73066971]
[1762682619607,0.0569,101630.0,101620.0,0.48466971]
[1762682619807,0.0569,101630.0,101620.0,0.73066971]
[1762682620316,0.03527705,101640.0,101620.0,0.82909871]
[1762682620615,0.32549065,101640.0,101630.0,0.4592193]
[1762682621315,0.20530525,101640.0,101630.0,0.4592193]
[1762682621616,0.11165675,101640.0,101630.0,0.7051793]
[1762682621826,0.00014705,101640.0,101630.0,0.7051793]
[1762682622317,0.00014705,101640.0,101630.0,0.4592193]
[1762682622516,0.00014705,101640.0,101630.0,0.7051793]
[1762682623219,0.00014705,101640.0,101630.0,0.4592193]
[1762682623514,0.00014705,101640.0,101630.0,0.7051793]
[1762682623708,0.00014705,101640.0,101630.0,0.4592193]
[1762682623907,0.00014705,101640.0,101630.0,0.7051793]
[1762682624317,0.00014705,101640.0,101630.0,0.7081793]
[1762682625014,0.01324705,101640.0,101630.0,0.7111793]
[1762682625221,0.00014705,101640.0,101630.0,0.7111793]
[1762682625813,0.00014705,101640.0,101630.0,0.4652193]
[1762682626013,0.00014705,101640.0,101630.0,0.7111793]
[1762682626816,0.01309705,101640.0,101630.0,0.7111793]
[1762682627018,0.03565705,101640.0,101630.0,0.7111793]
[1762682627204,0.15643665,101640.0,101630.0,0.7111793]
[1762682627604,0.15643665,101640.0,101630.0,0.4652193]
[1762682631617,0.15643665,101640.0,101630.0,0.4652194]
[1762682632420,0.05802705,101640.0,101630.0,0.4652194]
[1762682633623,0.05802705,101640.0,101630.0,0.3668]
[1762682633817,0.15643675,101640.0,101630.0,0.4652194]
[1762682634207,0.15643675,101640.0,101630.0,0.3668]
[1762682634413,0.17956624,101640.0,101630.0,0.3668]
[1762682634817,0.15643675,101640.0,101630.0,0.3668]
[1762682637318,0.17956543,101640.0,101630.0,0.3668]
[1762682639225,0.17956543,101640.0,101630.0,0.4652193]
[1762682639525,0.17956543,101640.0,101630.0,0.3668]
[1762682641713,0.08115573,101640.0,101630.0,0.4652193]
[1762682642526,0.03622573,101640.0,101630.0,0.7111793]
[1762682642918,0.02327573,101640.0,101630.0,0.7111793]
[1762682643319,0.02327573,101640.0,101630.0,0.4652193]
[1762682643520,0.02327573,101640.0,101630.0,0.7111793]
[1762682644127,0.00014705,101640.0,101630.0,0.7111793]
[1762682644427,0.03479,101650.0,101640.0,0.0984097]
[1762682644628,0.05729925,101650.0,101640.0,0.4592097]
[1762682644828,0.05729925,101650.0,101640.0,0.7051697]
[1762682645026,0.08029925,101650.0,101640.0,0.4592097]
[1762682645429,0.08029925,101650.0,101640.0,0.7051697]
[1762682645631,0.17869925,101650.0,101640.0,0.7051697]
[1762682646431,0.17869925,101650.0,101640.0,0.7081697]
[1762682646618,0.08029925,101650.0,101640.0,0.7081697]
[1762682646923,0.02250925,101650.0,101640.0,0.7081697]
[1762682647132,0.02250925,101650.0,101640.0,0.4622097]
[1762682647315,0.02250925,101650.0,101640.0,0.7081697]
[1762682649531,0.02250925,101650.0,101640.0,0.4622097]
[1762682649729,0.01340705,101660.0,101650.0,0.0984]
[1762682649924,0.01340705,101660.0,101650.0,0.4592]
[1762682650123,0.00014705,101660.0,101650.0,0.70512]
[1762682650535,0.00014705,101660.0,101650.0,0.4592]
[1762682650732,0.00014705,101660.0,101650.0,0.70512]
[1762682651238,0.00014705,101660.0,101650.0,0.4592]
[1762682651433,0.00014705,101660.0,101650.0,0.70512]
[1762682652134,0.00014705,101660.0,101650.0,0.4592]
[1762682652434,0.00014705,101660.0,101650.0,0.71112]
[1762682652837,0.01361705,101660.0,101650.0,0.71112]
[1762682653036,0.01361705,101660.0,101650.0,0.4652]
[1762682653235,0.03514705,101660.0,101650.0,0.4652]
[1762682653437,0.05814705,101660.0,101650.0,0.4652]
[1762682654138,0.05814705,101660.0,101650.0,0.3668]
[1762682654335,0.15653735,101660.0,101650.0,0.4652]
[1762682657543,0.15653735,101660.0,101650.0,0.3668]
[1762682658043,0.15653735,101660.0,101650.0,0.4652]
[1762682659037,0.15653735,101660.0,101650.0,0.3668]
[1762682660043,0.15653735,101660.0,101650.0,0.4652]
[1762682661636,0.1789282,101660.0,101650.0,0.4652]
[1762682661836,0.1789282,101660.0,101650.0,0.3668]
[1762682664943,0.32744271,101660.0,101650.0,0.3668]
[1762682668745,0.36250691,101660.0,101650.0,0.3668]
[1762682671650,0.96250691,101660.0,101650.0,0.006]
[1762682671852,0.05754,101650.0,101640.0,0.3608]
[1762682672151,0.22705007,101650.0,101640.0,0.3608]
[1762682674051,0.22705007,101650.0,101640.0,0.3648]
[1762682674351,0.22705007,101650.0,101640.0,0.3688]
[1762682674953,0.22705007,101650.0,101640.0,0.39087]
[1762682676553,0.22705007,101650.0,101640.0,0.41231]
[1762682679758,0.32544997,101650.0,101640.0,0.41231]
[1762682681257,0.22705007,101650.0,101640.0,0.41231]
[1762682681651,0.16951007,101650.0,101640.0,0.5187597]
[1762682681957,0.02239085,101650.0,101640.0,0.5187597]
[1762682683658,0.02239085,101650.0,101640.0,0.5147597]
[1762682683856,0.02339085,101650.0,101640.0,0.5107597]
[1762682684159,0.12179085,101650.0,101640.0,0.5107597]
[1762682684353,0.12079085,101650.0,101640.0,0.5107597]
[1762682684556,0.12079085,101650.0,101640.0,0.5117597]
[1762682686660,0.12179085,101650.0,101640.0,0.7567197]
[1762682686954,0.12179085,101650.0,101640.0,0.7577197]
[1762682687157,0.12079085,101650.0,101640.0,0.7577197]
[1762682687558,0.02239085,101650.0,101640.0,0.7577197]
[1762682689260,0.02239085,101650.0,101640.0,0.5117597]
[1762682689459,0.12079085,101650.0,101640.0,0.7577197]
[1762682689649,0.12079085,101650.0,101640.0,0.5117597]
[1762682689853,0.02239085,101650.0,101640.0,0.7577197]
[1762682690652,0.02239085,101650.0,101640.0,0.5117597]
[1762682690964,0.02239085,101650.0,101640.0,0.7577197]
[1762682691662,0.02239085,101650.0,101640.0,0.5117597]
[1762682691956,0.1915049,101680.0,101670.0,0.04395]
[1762682692161,0.1564407,101680.0,101670.0,0.8639307]
[1762682692361,0.30360641,101680.0,101670.0,0.8669307]
[1762682692559,0.1564407,101680.0,101670.0,0.8669307]
[1762682692759,0.1429707,101680.0,101670.0,0.8669307]
[1762682693258,0.1590407,101680.0,101670.0,0.8639307]
[1762682693465,0.1630407,101680.0,101670.0,0.8639307]
[1762682693963,0.1560407,101680.0,101670.0,0.8639307]
[1762682694265,0.1560407,101680.0,101670.0,0.8649307]
[1762682694761,0.1570407,101680.0,101670.0,0.8649307]
[1762682694956,0.1570407,101680.0,101670.0,0.8679307]
[1762682694957,0.1217207,101680.0,101670.0,0.8679307]
[1762682695152,0.0993807,101680.0,101670.0,0.8679307]
[1762682695569,0.1217207,101680.0,101670.0,0.8679307]
[1762682695965,0.02334,101680.0,101670.0,0.8679307]
[1762682696164,0.05916705,101690.0,101680.0,0.04345]
[1762682696352,0.00014705,101690.0,101680.0,0.5026209]
[1762682696556,0.24683485,101690.0,101680.0,0.5106609]
[1762682696757,0.09850835,101690.0,101680.0,0.5106609]
[1762682697166,0.00014705,101690.0,101680.0,0.5106609]
[1762682697568,0.04551705,101690.0,101680.0,0.5106609]
[1762682697962,0.02257705,101690.0,101680.0,0.5106609]
[1762682698165,0.00014705,101690.0,101680.0,0.5106609]
[1762682698768,0.05829705,101690.0,101680.0,0.40425]
[1762682699159,0.05829705,101690.0,101680.0,0.40525]
[1762682699760,0.05829705,101690.0,101680.0,0.40425]
[1762682700153,0.05929705,101690.0,101680.0,0.40425]
[1762682701073,0.05815,101680.0,101670.0,0.3608]
[1762682701366,0.30343223,101680.0,101670.0,0.3608]
[1762682701665,0.05815,101670.0,101660.0,0.36094705]
[1762682701867,0.1565306,101670.0,101660.0,0.36094705]
[1762682702059,0.30344193,101670.0,101660.0,0.36094705]
[1762682702661,0.30344193,101670.0,101660.0,0.38356705]
[1762682703164,0.30344193,101670.0,101660.0,0.40494705]
[1762682703364,0.30344193,101670.0,101660.0,0.38556705]
[1762682703766,0.30344193,101670.0,101660.0,0.38756705]
[1762682703965,0.3250122,101670.0,101660.0,0.38756705]
[1762682704164,0.3270122,101670.0,101660.0,0.38356705]
[1762682704364,0.3300122,101670.0,101660.0,0.38356705]
[1762682705671,0.3300122,101670.0,101660.0,0.40494705]
[1762682711774,0.6908122,101670.0,101660.0,0.00014705]
[1762682711961,0.6908122,101670.0,101660.0,0.04414705]
[1762682712776,0.6908122,101670.0,101660.0,0.00014705]
[1762682712968,0.7258764,101670.0,101660.0,0.00014705]
[1762682717379,0.7258764,101670.0,101660.0,0.04414705]
[1762682717678,0.7258764,101670.0,101660.0,0.00014705]
[1762682717978,0.7258764,101670.0,101660.0,0.02276705]
[1762682718178,0.7258764,101670.0,101660.0,0.04414705]
[1762682720683,0.7258764,101670.0,101660.0,0.00014705]
[1762682721085,0.3650764,101670.0,101660.0,0.00014705]
[1762682721280,0.3300122,101670.0,101660.0,0.02276705]
[1762682722176,0.6908122,101670.0,101660.0,0.02276705]
[1762682723385,0.05815,101660.0,101650.0,0.3608]
[1762682723575,0.05815,101650.0,101640.0,0.3608]
[1762682723879,0.02243,101640.0,101630.0,0.3608]
[1762682724087,0.17812997,101640.0,101630.0,0.4048]
[1762682724384,0.32575299,101640.0,101630.0,0.4048]
[1762682725699,0.32575299,101640.0,101630.0,0.4088]
[1762682735901,0.32575299,101640.0,101630.0,0.048]
[1762682737709,0.32575299,101640.0,101630.0,0.004]
[1762682737913,0.36081719,101640.0,101630.0,0.004]
[1762682738608,0.36081719,101640.0,101630.0,0.02693]
[1762682739213,0.36081719,101640.0,101630.0,0.004]
[1762682741812,0.72161719,101640.0,101630.0,0.004]
[1762682742915,0.72161719,101640.0,101630.0,0.003]
[1762682743411,0.72161719,101640.0,101630.0,0.001]
[1762682743716,0.72161719,101640.0,101630.0,0.002]
[1762682745910,0.72161719,101640.0,101630.0,0.0234]
[1762682746118,0.72161719,101640.0,101630.0,0.04668]
[1762682746824,0.72161719,101640.0,101630.0,0.0234]
[1762682747623,0.72161719,101640.0,101630.0,0.04668]
[1762682749024,0.72161719,101640.0,101630.0,0.002]
[1762682749223,0.72161719,101640.0,101630.0,0.04668]
[1762682754020,0.36081719,101640.0,101630.0,0.40748]
[1762682754216,0.36081719,101640.0,101630.0,0.42029]
[1762682756125,0.20425749,101640.0,101630.0,0.42029]
[1762682756332,0.02157027,101640.0,101630.0,1.1187093]
[1762682756626,0.02222705,101650.0,101640.0,0.1485897]
[1762682756925,0.16966953,101650.0,101640.0,0.5093897]
[1762682757130,0.14758953,101650.0,101640.0,0.5093897]
[1762682757429,0.00014705,101650.0,101640.0,0.5093897]
[1762682758724,0.00114705,101650.0,101640.0,0.5093897]
[1762682758929,0.00114705,101650.0,101640.0,0.5113897]
[1762682759337,0.00014705,101650.0,101640.0,0.5113897]
[1762682759526,0.00014705,101650.0,101640.0,0.5123897]
[1762682760424,0.00014705,101650.0,101640.0,0.5113897]
[1762682760624,0.00014705,101650.0,101640.0,0.5123897]
[1762682761530,0.01278,101670.0,101660.0,0.04314]
[1762682761531,0.05648,101670.0,101660.0,0.04314]
[1762682761731,0.05648,101670.0,101660.0,0.40394]
[1762682761938,0.2041197,101670.0,101660.0,0.40394]
[1762682762832,0.2061197,101670.0,101660.0,0.40394]
[1762682763136,0.2081197,101670.0,101660.0,0.40394]
[1762682764731,0.2041197,101670.0,101660.0,0.40394]
[1762682764934,0.3075003,101670.0,101660.0,0.40394]
[1762682765326,0.3045003,101670.0,101660.0,0.40394]
[1762682765532,0.3075003,101670.0,101660.0,0.40394]
[1762682766435,0.3045003,101670.0,101660.0,0.40394]
[1762682766637,0.3075003,101670.0,101660.0,0.40394]
[1762682768328,0.3055003,101670.0,101660.0,0.40394]
[1762682768528,0.32793581,101670.0,101660.0,0.40394]
[1762682769233,0.32893581,101670.0,101660.0,0.40394]
[1762682770237,0.23055521,101670.0,101660.0,0.40394]
[1762682771041,0.32893571,101670.0,101660.0,0.40394]
[1762682772241,0.32893571,101670.0,101660.0,0.5023302]
[1762682772630,0.32893571,101670.0,101660.0,0.40394]
[1762682774641,0.32893571,101670.0,101660.0,0.5023303]
[1762682774835,0.17407521,101670.0,101660.0,0.5151403]
[1762682775035,0.005,101670.0,101660.0,0.8759403]
[1762682775339,0.00014705,101680.0,101670.0,0.1493305]
[1762682775538,0.00014705,101680.0,101670.0,0.5101305]
[1762682775836,0.1549216,101700.0,101690.0,0.04614]
[1762682776037,0.17635883,101700.0,101690.0,0.40694]
[1762682776231,0.32438328,101700.0,101690.0,0.40694]
[1762682777628,0.32438328,101700.0,101690.0,0.40394]
[1762682777834,0.05657,101690.0,101680.0,0.40408705]
[1762682778028,0.17636843,101690.0,101680.0,0.40408705]
[1762682780041,0.17736843,101690.0,101680.0,0.40408705]
[1762682780240,0.32399981,101690.0,101680.0,0.40408705]
[1762682780743,0.32299981,101690.0,101680.0,0.40408705]
[1762682781536,0.32399981,101690.0,101680.0,0.40408705]
[1762682781743,0.32499981,101690.0,101680.0,0.40408705]
[1762682784938,0.41269798,101690.0,101680.0,0.40408705]
[1762682785445,0.37763378,101690.0,101680.0,0.40408705]
[1762682785944,0.26158791,101690.0,101680.0,0.50545795]
[1762682786150,0.26158791,101690.0,101680.0,0.40408705]
[1762682786348,0.35994921,101690.0,101680.0,0.40408705]
[1762682786642,0.41258318,101690.0,101680.0,0.40408705]
[1762682786847,0.41258318,101690.0,101680.0,0.00014705]
[1762682787051,0.73743388,101690.0,101680.0,0.00014705]
[1762682787539,0.68479991,101690.0,101660.0,0.3608]
[1762682787740,0.05891,101670.0,101660.0,0.40596]
[1762682788040,0.22697385,101670.0,101660.0,0.40596]
[1762682788235,0.05891,101660.0,101650.0,0.3608]
[1762682788435,0.05891,101650.0,101640.0,0.40610705]
[1762682788747,0.22724504,101650.0,101640.0,0.40610705]
[1762682790545,0.22724504,101650.0,101640.0,0.50451665]
[1762682791740,0.32564504,101650.0,101640.0,0.50451665]
[1762682792352,0.32564504,101650.0,101640.0,0.40610705]
[1762682793252,0.22724504,101650.0,101640.0,0.50451675]
[1762682793447,0.02143723,101650.0,101640.0,0.51180675]
[1762682793655,0.24481519,101670.0,101650.0,0.1997924]
[1762682793847,0.2662563,101670.0,101660.0,0.40596]
[1762682794154,0.41291624,101670.0,101660.0,0.40596]
[1762682794853,0.3265461,101670.0,101660.0,0.40596]
[1762682795250,0.2281581,101670.0,101660.0,0.40596]
[1762682795644,0.2311581,101670.0,101660.0,0.8729603]
[1762682796243,0.1943381,101670.0,101660.0,0.8729603]
[1762682796546,0.1742481,101670.0,101660.0,0.8729603]
[1762682797551,0.3182588,101670.0,101660.0,0.77457]
[1762682797949,0.3182588,101670.0,101660.0,0.8729604]
[1762682800641,0.3315388,101670.0,101660.0,0.8729604]
[1762682802449,0.3285388,101670.0,101660.0,0.8729604]
[1762682802650,0.3152588,101670.0,101660.0,0.8729604]
[1762682803065,0.3122588,101670.0,101660.0,0.8729604]
[1762682807663,0.31227347,101670.0,101660.0,0.8729604]
[1762682810549,0.16561353,101670.0,101660.0,0.8729604]
[1762682811949,0.17921353,101670.0,101660.0,0.8729603]
[1762682812154,0.17921353,101670.0,101660.0,0.76676]
[1762682813465,0.18021353,101670.0,101660.0,0.76676]
[1762682814064,0.18121353,101670.0,101660.0,0.76676]
[1762682814666,0.32847782,101670.0,101640.0,0.36094705]
[1762682814869,0.32847782,101670.0,101640.0,0.40527705]
[1762682814870,0.05668,101650.0,101640.0,0.40527705]
[1762682815072,0.07813578,101650.0,101640.0,0.50368675]
[1762682816164,0.07813578,101650.0,101640.0,0.50568675]
[1762682816766,0.07813578,101650.0,101640.0,0.50668675]
[1762682817463,0.07813578,101650.0,101640.0,0.50568675]
[1762682817671,0.07813578,101650.0,101640.0,0.40727705]
[1762682818172,0.07813578,101650.0,101640.0,0.50568665]
[1762682818573,0.17653578,101650.0,101640.0,0.40527705]
[1762682818975,0.17653578,101650.0,101640.0,0.50368665]
[1762682819481,0.17653578,101650.0,101640.0,0.40527705]
[1762682820282,0.17653578,101650.0,101640.0,0.50368665]
[1762682821084,0.32343047,101650.0,101640.0,0.00014705]
[1762682821275,0.05672,101630.0,101620.0,0.42793071]
[1762682821576,0.22672866,101630.0,101620.0,0.42793071]
[1762682822872,0.22672866,101630.0,101620.0,0.43293071]
[1762682823373,0.32514796,101630.0,101620.0,0.43293071]
[1762682824880,0.32514796,101630.0,101620.0,0.07213071]
[1762682828188,0.3350424,101630.0,101620.0,0.07213071]
[1762682828691,0.3350424,101630.0,101620.0,0.02744071]
[1762682828889,0.3350424,101630.0,101620.0,0.07213071]
[1762682829483,0.3350424,101630.0,101620.0,0.04917071]
[1762682829679,0.3350424,101630.0,101620.0,0.02744071]
[1762682830081,0.3350424,101630.0,101620.0,0.04917071]
[1762682830279,0.3350424,101630.0,101620.0,0.02744071]
[1762682833296,0.36998294,101630.0,101620.0,0.02744071]
[1762682833794,0.3350424,101630.0,101620.0,0.02744071]
[1762682833998,0.36998294,101630.0,101620.0,0.02744071]
[1762682834496,0.73078294,101630.0,101620.0,0.02744071]
[1762682834896,0.6988424,101630.0,101620.0,0.02444071]
[1762682835287,0.6988424,101630.0,101620.0,0.02244071]
[1762682835496,0.7028424,101630.0,101620.0,0.02244071]
[1762682837201,0.7018424,101630.0,101620.0,0.02244071]
[1762682837704,0.6988424,101630.0,101620.0,0.02244071]
[1762682838002,0.7018424,101630.0,101620.0,0.02244071]
[1762682841093,0.1551491,101620.0,101610.0,0.02578577]
[1762682841296,0.57234542,101620.0,101610.0,0.02578577]
[1762682841493,0.05672,101610.0,101600.0,0.07001709]
[1762682841697,0.07817578,101610.0,101600.0,0.07001709]
[1762682841892,0.22601698,101610.0,101600.0,0.07001709]
[1762682842596,0.2260979,101610.0,101600.0,0.07001709]
[1762682842993,0.2260979,101610.0,101600.0,0.03501709]
[1762682843194,0.26095752,101610.0,101600.0,0.03501709]
[1762682843394,0.35939622,101610.0,101600.0,0.03501709]
[1762682843594,0.32445568,101610.0,101600.0,0.03501709]
[1762682843999,0.32445568,101610.0,101600.0,1.709e-05]
[1762682844203,0.72019622,101610.0,101600.0,1.709e-05]
[1762682844894,0.77262582,101610.0,101600.0,1.709e-05]
[1762682845597,0.77271236,101610.0,101600.0,1.709e-05]
[1762682845903,0.77262582,101610.0,101600.0,1.709e-05]
[1762682846403,0.72019622,101610.0,101600.0,1.709e-05]
[1762682846896,0.72028276,101610.0,101600.0,1.709e-05]
[1762682847097,0.72027341,101610.0,101600.0,1.709e-05]
[1762682847294,0.72019622,101610.0,101600.0,1.709e-05]
[1762682848602,0.77262582,101610.0,101600.0,1.709e-05]
[1762682849101,0.72019622,101610.0,101600.0,1.709e-05]
[1762682849296,0.73768528,101610.0,101570.0,0.37388]
[1762682849503,0.1431778,101580.0,101570.0,0.4177]
[1762682849702,0.16471731,101580.0,101570.0,0.4177]
[1762682849895,0.16858031,101580.0,101570.0,0.4177]
[1762682850601,0.31656011,101580.0,101570.0,0.4177]
[1762682850997,0.21809231,101580.0,101570.0,0.4177]
[1762682851310,0.31656011,101580.0,101570.0,0.4267]
[1762682851802,0.21809231,101580.0,101570.0,0.5251775]
[1762682852006,0.21809231,101580.0,101570.0,0.5211775]
[1762682852194,0.21809231,101580.0,101570.0,0.5251775]
[1762682852392,0.21809231,101580.0,101570.0,0.4267]
[1762682853204,0.21809231,101580.0,101570.0,0.5251775]
[1762682853912,0.19663653,101580.0,101570.0,0.5251775]
[1762682855503,0.15192653,101580.0,101570.0,0.5251775]
[1762682855710,0.17340203,101580.0,101570.0,0.5251775]
[1762682855901,0.21811203,101580.0,101570.0,0.5251775]
[1762682856404,0.00014705,101590.0,101580.0,0.1555978]
[1762682856610,0.00014705,101590.0,101580.0,0.5163978]
[1762682856809,0.14829957,101590.0,101580.0,0.5163978]
[1762682857011,0.24676067,101590.0,101580.0,0.5163978]
[1762682857311,0.29147067,101590.0,101580.0,0.5163978]
[1762682857500,0.19300957,101590.0,101580.0,0.5163978]
[1762682857701,0.14829957,101590.0,101580.0,0.5183978]
[1762682858113,0.14829957,101590.0,101580.0,0.5213978]
[1762682858901,0.00014705,101590.0,101580.0,0.5213978]
[1762682859104,0.098445,101610.0,101600.0,0.1555776]
[1762682859317,0.16464439,101610.0,101600.0,0.5163776]
[1762682859611,0.31205107,101610.0,101600.0,0.41793]
[1762682861414,0.19183607,101610.0,101600.0,0.5163784]
[1762682861817,0.16889607,101610.0,101600.0,0.8771784]
[1762682862114,0.21360607,101610.0,101600.0,0.8771784]
[1762682863717,0.16889607,101610.0,101600.0,0.8771784]
[1762682863901,0.02148939,101610.0,101600.0,0.8771784]
[1762682864301,0.00014705,101620.0,101610.0,0.1555687]
[1762682864600,0.0984246,101630.0,101620.0,0.1555591]
[1762682864804,0.0984246,101630.0,101620.0,0.5163591]
[1762682865014,0.24581895,101630.0,101620.0,0.5163591]
[1762682865814,0.20710435,101630.0,101620.0,0.38309]
[1762682866015,0.20710435,101630.0,101620.0,0.04388]
[1762682866516,0.19337435,101630.0,101620.0,0.41745]
[1762682866909,0.29179365,101630.0,101620.0,0.41945]
[1762682867409,0.30736365,101630.0,101620.0,0.41745]
[1762682867616,0.30736365,101630.0,101620.0,0.40468]
[1762682868612,0.66816365,101630.0,101620.0,0.04388]
[1762682869311,0.70306821,101630.0,101620.0,0.04388]
[1762682869706,0.34226821,101630.0,101620.0,0.04388]
[1762682869903,0.34226821,101630.0,101620.0,0.05665]
[1762682871416,0.20894435,101630.0,101620.0,0.41745]
[1762682871615,0.19537435,101630.0,101620.0,0.41745]
[1762682872918,0.29179365,101630.0,101620.0,0.41745]
[1762682873420,0.30536365,101630.0,101620.0,0.41745]
[1762682873917,0.30636365,101630.0,101620.0,0.41745]
[1762682874321,0.30736365,101630.0,101620.0,0.41745]
[1762682875221,0.30736365,101630.0,101610.0,0.37425705]
[1762682875415,0.05829,101620.0,101610.0,0.36094705]
[1762682875614,0.09319456,101620.0,101610.0,0.36094705]
[1762682875810,0.24146513,101620.0,101610.0,0.36094705]
[1762682876018,0.24146513,101620.0,101610.0,0.38375705]
[1762682876215,0.36127534,101620.0,101610.0,0.40514705]
[1762682876510,0.34754534,101620.0,101610.0,0.41834705]
[1762682876823,0.24911634,101620.0,101610.0,0.41834705]
[1762682877424,0.26233634,101620.0,101610.0,0.41834705]
[1762682877624,0.21421178,101620.0,101610.0,0.41834705]
[1762682878019,0.21421178,101620.0,101610.0,0.51678575]
[1762682878323,0.21421178,101620.0,101610.0,0.41834705]
[1762682878826,0.22743178,101620.0,101610.0,0.41834705]
[1762682882018,0.16965178,101620.0,101610.0,0.51678575]
[1762682882423,0.02138121,101620.0,101610.0,0.76282575]
[1762682882618,0.20751731,101640.0,101630.0,0.05462]
[1762682882820,0.19876428,101640.0,101630.0,0.5138393]
[1762682883028,0.3016276,101640.0,101630.0,0.41542]
[1762682883418,0.3232476,101640.0,101630.0,0.41542]
[1762682883619,0.3232476,101640.0,101630.0,0.5138393]
[1762682884123,0.3242476,101640.0,101630.0,0.5138393]
[1762682884319,0.3242476,101640.0,101630.0,0.41542]
[1762682885020,0.28934304,101640.0,101630.0,0.5138393]
[1762682885221,0.29034304,101640.0,101630.0,0.5138393]
[1762682885421,0.17030694,101640.0,101630.0,0.5138393]
[1762682885728,0.02347362,101640.0,101630.0,0.5138393]
[1762682886431,0.02247362,101640.0,101630.0,0.5138393]
[1762682886623,0.02147362,101640.0,101630.0,0.5138393]
[1762682886923,0.02147362,101640.0,101630.0,0.5158393]
[1762682888319,0.02147362,101640.0,101630.0,0.5168393]
[1762682889923,0.02147362,101640.0,101630.0,0.7627993]
[1762682890129,0.02147362,101640.0,101630.0,0.5168393]
[1762682890827,3.62e-06,101640.0,101630.0,0.7627993]
[1762682891134,0.08882872,101660.0,101650.0,0.1464]
[1762682891428,0.29079098,101660.0,101650.0,0.5072]
[1762682891631,0.29079098,101660.0,101650.0,0.4088]
[1762682892023,0.29079098,101660.0,101650.0,0.5072]
[1762682892223,0.29179098,101660.0,101650.0,0.5072]
[1762682892735,0.29279098,101660.0,101650.0,0.5072]
[1762682893629,0.29179098,101660.0,101650.0,0.4088]
[1762682894236,0.30401098,101660.0,101650.0,0.40419]
[1762682894534,0.33891554,101660.0,101650.0,0.40419]
[1762682895930,0.33991554,101660.0,101650.0,0.40419]
[1762682896132,0.34091554,101660.0,101650.0,0.40419]
[1762682898335,0.32769554,101660.0,101650.0,0.51579]
[1762682898540,0.19440068,101660.0,101650.0,0.41739]
[1762682898738,0.20762068,101660.0,101650.0,0.41739]
[1762682899434,0.30601098,101660.0,101650.0,0.40419]
[1762682901133,0.34091554,101660.0,101650.0,0.40419]
[1762682903035,0.36213648,101660.0,101650.0,0.40419]
[1762682903537,0.26374618,101660.0,101650.0,0.51579]
[1762682903735,0.22884162,101660.0,101650.0,0.51579]
[1762682903940,0.22884162,101660.0,101650.0,0.41739]
[1762682904336,0.22884162,101660.0,101650.0,0.50259]
[1762682906936,0.22784162,101660.0,101650.0,0.50259]
[1762682907144,0.24952618,101660.0,101650.0,0.51579]
[1762682907534,0.21462162,101660.0,101650.0,0.51579]
[1762682907735,0.24952618,101660.0,101650.0,0.51579]
[1762682907936,0.25052618,101660.0,101650.0,0.51579]
[1762682909642,0.25052618,101660.0,101650.0,0.41739]
[1762682909849,0.34891648,101660.0,101650.0,0.41739]
[1762682910144,0.36268648,101660.0,101650.0,0.41739]
[1762682911345,0.41511608,101660.0,101650.0,0.40419]
[1762682912534,0.38021152,101660.0,101650.0,0.40419]
[1762682917247,0.38021152,101660.0,101650.0,0.04339]
[1762682919650,0.38021152,101660.0,101650.0,0.022]
[1762682919848,0.05902,101650.0,101640.0,0.40509705]
[1762682920151,0.29431347,101650.0,101640.0,0.40509705]
[1762682920450,0.31553441,101650.0,101640.0,0.40509705]
[1762682922252,0.41393421,101650.0,101640.0,0.40509705]
[1762682924961,0.39651528,101650.0,101640.0,0.40509705]
[1762682925850,0.3263487,101650.0,101640.0,0.40509705]
[1762682926150,0.37887726,101650.0,101640.0,0.40509705]